[Event "*** SCC Grand Prix: Titled Tuesday Blitz"]
[Site "Chess.com"]
[Date "2020.07.07"]
[Round "2"]
[White "tk22h"]
[Black "Paladin61"]
[Result "0-1"]
[WhiteElo "2288"]
[BlackElo "2639"]
[TimeControl "180+1"]
[EndTime "10:20:17 PDT"]
[Termination "Paladin61 won on time"]

1. c4 {[%clk 0:03:00.9]} 1... Nf6 {[%clk 0:02:59.6]} 2. Nc3 {[%clk 0:03:00.1]}
2... g6 {[%clk 0:02:59.7]} 3. Nf3 {[%clk 0:02:59.1]} 3... Bg7 {[%clk 0:02:59.4]}
4. g3 {[%clk 0:02:59.1]} 4... O-O {[%clk 0:02:59.5]} 5. Bg2 {[%clk 0:02:59.2]}
5... d6 {[%clk 0:02:59.5]} 6. d4 {[%clk 0:02:57.5]} 6... Nc6 {[%clk 0:02:59.3]}
7. O-O {[%clk 0:02:56.6]} 7... a6 {[%clk 0:02:58.9]} 8. b3 {[%clk 0:02:51.3]}
8... Rb8 {[%clk 0:02:58.3]} 9. Bb2 {[%clk 0:02:49.4]} 9... b5 {[%clk 0:02:57.8]}
10. cxb5 {[%clk 0:02:47.2]} 10... axb5 {[%clk 0:02:58.1]} 11. Rc1 {[%clk
0:02:47.3]} 11... b4 {[%clk 0:02:57.9]} 12. Na4 {[%clk 0:02:46.8]} 12... Na5
{[%clk 0:02:42.6]} 13. Re1 {[%clk 0:02:41.3]} 13... Bb7 {[%clk 0:02:30.6]} 14.
Qd2 {[%clk 0:02:36.1]} 14... Bd5 {[%clk 0:02:19.1]} 15. Ng5 {[%clk 0:02:27.1]}
15... Bxg2 {[%clk 0:02:09.5]} 16. Kxg2 {[%clk 0:02:28]} 16... Nd7 {[%clk
0:01:34.8]} 17. d5 {[%clk 0:02:23.8]} 17... Bxb2 {[%clk 0:01:25.2]} 18. Nxb2
{[%clk 0:02:21.5]} 18... Nc5 {[%clk 0:01:19.2]} 19. Nc4 {[%clk 0:02:18.1]} 19...
c6 {[%clk 0:01:10.6]} 20. Nxa5 {[%clk 0:02:15.1]} 20... Qxa5 {[%clk 0:01:10]}
21. dxc6 {[%clk 0:02:12.8]} 21... Qa8 {[%clk 0:01:02.8]} 22. e4 {[%clk
0:01:37.2]} 22... Qxc6 {[%clk 0:01:00.6]} 23. f3 {[%clk 0:01:31.5]} 23... Qa6
{[%clk 0:00:57.6]} 24. Rc4 {[%clk 0:01:29.9]} 24... Ra8 {[%clk 0:00:49.3]} 25.
Re2 {[%clk 0:01:29.8]} 25... h6 {[%clk 0:00:40.9]} 26. Nh3 {[%clk 0:01:29.2]}
26... Kh7 {[%clk 0:00:37.5]} 27. Nf4 {[%clk 0:01:26.2]} 27... e6 {[%clk
0:00:33.2]} 28. h4 {[%clk 0:01:22.7]} 28... Rfb8 {[%clk 0:00:30.7]} 29. Qe3
{[%clk 0:01:12.8]} 29... Qa7 {[%clk 0:00:24.5]} 30. Rd2 {[%clk 0:01:06.2]} 30...
Nd7 {[%clk 0:00:22.2]} 31. Qxa7 {[%clk 0:01:05.3]} 31... Rxa7 {[%clk 0:00:22.3]}
32. Rc6 {[%clk 0:00:55.6]} 32... Rb6 {[%clk 0:00:16.4]} 33. Rxb6 {[%clk
0:00:54.5]} 33... Nxb6 {[%clk 0:00:16.4]} 34. Rxd6 {[%clk 0:00:50]} 34... Rxa2+
{[%clk 0:00:15.4]} 35. Kg1 {[%clk 0:00:35.9]} 35... Na8 {[%clk 0:00:15.3]} 36.
Rd7 {[%clk 0:00:32.8]} 36... Kg8 {[%clk 0:00:13.9]} 37. Rb7 {[%clk 0:00:31.6]}
37... Rb2 {[%clk 0:00:10.4]} 38. Rb8+ {[%clk 0:00:30.2]} 38... Kg7 {[%clk
0:00:09.3]} 39. Rxa8 {[%clk 0:00:31.1]} 39... Rxb3 {[%clk 0:00:09.5]} 40. Kf2
{[%clk 0:00:31.2]} 40... g5 {[%clk 0:00:09.1]} 41. hxg5 {[%clk 0:00:30]} 41...
hxg5 {[%clk 0:00:09.8]} 42. Ne2 {[%clk 0:00:29.8]} 42... Rb2 {[%clk 0:00:09.2]}
43. Rb8 {[%clk 0:00:28.6]} 43... Kf6 {[%clk 0:00:08.4]} 44. Ke3 {[%clk
0:00:28.3]} 44... Rb3+ {[%clk 0:00:08]} 45. Kf2 {[%clk 0:00:25.6]} 45... Rb2
{[%clk 0:00:08.3]} 46. f4 {[%clk 0:00:25.9]} 46... g4 {[%clk 0:00:05.1]} 47. Rb7
{[%clk 0:00:23.8]} 47... Kg6 {[%clk 0:00:04.3]} 48. Ke3 {[%clk 0:00:20.5]} 48...
Rb3+ {[%clk 0:00:04.3]} 49. Kd4 {[%clk 0:00:20.2]} 49... Kf6 {[%clk 0:00:03.7]}
50. e5+ {[%clk 0:00:18.4]} 50... Kg6 {[%clk 0:00:03.8]} 51. Nc1 {[%clk
0:00:15.1]} 51... Rxg3 {[%clk 0:00:03.9]} 52. Rxb4 {[%clk 0:00:14.6]} 52... Rg2
{[%clk 0:00:03.7]} 53. Nd3 {[%clk 0:00:14.5]} 53... Kf5 {[%clk 0:00:03.7]} 54.
Rb2 {[%clk 0:00:13]} 54... Rxb2 {[%clk 0:00:02.7]} 55. Nxb2 {[%clk 0:00:13]}
55... Kxf4 {[%clk 0:00:03.5]} 56. Nd3+ {[%clk 0:00:13.1]} 56... Kf3 {[%clk
0:00:03.4]} 57. Ne1+ {[%clk 0:00:13.3]} 57... Kf2 {[%clk 0:00:03.4]} 58. Nd3+
{[%clk 0:00:13.3]} 58... Ke2 {[%clk 0:00:03.7]} 59. Nf4+ {[%clk 0:00:13]} 59...
Kf3 {[%clk 0:00:04]} 60. Nh5 {[%clk 0:00:11.5]} 60... g3 {[%clk 0:00:04.9]} 61.
Nxg3 {[%clk 0:00:11.2]} 61... Kxg3 {[%clk 0:00:05.2]} 62. Ke4 {[%clk 0:00:11.7]}
62... Kg4 {[%clk 0:00:05.4]} 63. Ke3 {[%clk 0:00:11.9]} 63... Kf5 {[%clk
0:00:05.8]} 64. Kd4 {[%clk 0:00:12.1]} 64... Kf4 {[%clk 0:00:06.3]} 0-1

[Event "*** SCC Grand Prix: Titled Tuesday Blitz"]
[Site "Chess.com"]
[Date "2020.07.07"]
[Round "2"]
[White "FontVella8"]
[Black "LikeWater"]
[Result "1/2-1/2"]
[WhiteElo "2446"]
[BlackElo "2657"]
[TimeControl "180+1"]
[EndTime "10:20:18 PDT"]
[Termination "Game drawn - insufficient material"]

1. e4 {[%clk 0:03:00.9]} 1... c5 {[%clk 0:02:59.2]} 2. Nf3 {[%clk 0:03:00.3]}
2... e6 {[%clk 0:02:59.4]} 3. d4 {[%clk 0:03:00.4]} 3... cxd4 {[%clk 0:03:00.3]}
4. Nxd4 {[%clk 0:03:01]} 4... Nc6 {[%clk 0:03:00.6]} 5. Nc3 {[%clk 0:03:01]}
5... Qc7 {[%clk 0:03:00.5]} 6. Be3 {[%clk 0:03:01.2]} 6... Nf6 {[%clk
0:03:00.6]} 7. f4 {[%clk 0:02:59.7]} 7... Nxd4 {[%clk 0:02:57.3]} 8. Qxd4 {[%clk
0:02:58.9]} 8... b6 {[%clk 0:02:57.2]} 9. O-O-O {[%clk 0:02:45.9]} 9... Bb7
{[%clk 0:02:37.6]} 10. Be2 {[%clk 0:02:04.3]} 10... Rc8 {[%clk 0:02:34]} 11. Bf3
{[%clk 0:02:00.3]} 11... Bc5 {[%clk 0:02:08.4]} 12. Qd3 {[%clk 0:01:54.4]} 12...
O-O {[%clk 0:01:56.9]} 13. Kb1 {[%clk 0:01:51.4]} 13... d5 {[%clk 0:01:42.9]}
14. e5 {[%clk 0:01:41.8]} 14... Nd7 {[%clk 0:01:33]} 15. Bd4 {[%clk 0:01:40.4]}
15... Bxd4 {[%clk 0:01:29.4]} 16. Qxd4 {[%clk 0:01:40.3]} 16... Qc5 {[%clk
0:01:18.6]} 17. Rhe1 {[%clk 0:01:35.2]} 17... a6 {[%clk 0:01:17.1]} 18. f5
{[%clk 0:01:27.4]} 18... Qxd4 {[%clk 0:01:07.1]} 19. Rxd4 {[%clk 0:01:27]} 19...
b5 {[%clk 0:01:06.4]} 20. Bg4 {[%clk 0:01:19.2]} 20... Nc5 {[%clk 0:01:02.5]}
21. a4 {[%clk 0:01:10]} 21... bxa4 {[%clk 0:00:52.2]} 22. Nxa4 {[%clk
0:01:09.2]} 22... exf5 {[%clk 0:00:24.8]} 23. Bxf5 {[%clk 0:00:58.1]} 23... Ne6
{[%clk 0:00:25.3]} 24. Bxe6 {[%clk 0:00:45.4]} 24... fxe6 {[%clk 0:00:25.2]} 25.
b4 {[%clk 0:00:38.6]} 25... Rf2 {[%clk 0:00:23.8]} 26. Nc5 {[%clk 0:00:38.3]}
26... Rc7 {[%clk 0:00:16.9]} 27. Kb2 {[%clk 0:00:10.5]} 27... a5 {[%clk
0:00:13.6]} 28. Kb3 {[%clk 0:00:09.5]} 28... axb4 {[%clk 0:00:13]} 29. Kxb4
{[%clk 0:00:10]} 29... Bc8 {[%clk 0:00:10.8]} 30. Rc1 {[%clk 0:00:03.7]} 30...
Rxg2 {[%clk 0:00:11.2]} 31. Kb5 {[%clk 0:00:03.2]} 31... Rxh2 {[%clk 0:00:05.4]}
32. Kb6 {[%clk 0:00:03.6]} 32... Rf7 {[%clk 0:00:06]} 33. c4 {[%clk 0:00:03.6]}
33... Rb2+ {[%clk 0:00:05]} 34. Kc6 {[%clk 0:00:03.7]} 34... dxc4 {[%clk
0:00:03.1]} 35. Rd8+ {[%clk 0:00:03.3]} 35... Rf8 {[%clk 0:00:03.7]} 36. Rcd1
{[%clk 0:00:03.9]} 36... Ba6 {[%clk 0:00:02.2]} 37. Nxa6 {[%clk 0:00:03.1]}
37... c3 {[%clk 0:00:02.3]} 38. Rxf8+ {[%clk 0:00:02.7]} 38... Kxf8 {[%clk
0:00:03.2]} 39. Nc5 {[%clk 0:00:03.1]} 39... c2 {[%clk 0:00:03.3]} 40. Rc1
{[%clk 0:00:03.3]} 40... Ke7 {[%clk 0:00:03.8]} 41. Nd3 {[%clk 0:00:02.7]} 41...
Ra2 {[%clk 0:00:03.6]} 42. Nb4 {[%clk 0:00:02.8]} 42... Ra5 {[%clk 0:00:03.7]}
43. Nd3 {[%clk 0:00:02.1]} 43... Rd5 {[%clk 0:00:03.6]} 44. Nb4 {[%clk
0:00:02.1]} 44... Rxe5 {[%clk 0:00:04]} 45. Rxc2 {[%clk 0:00:02.7]} 45... Re1
{[%clk 0:00:04.3]} 46. Kc5 {[%clk 0:00:02.9]} 46... Kf6 {[%clk 0:00:04.6]} 47.
Kd4 {[%clk 0:00:03.2]} 47... Rd1+ {[%clk 0:00:04.8]} 48. Ke4 {[%clk 0:00:02.8]}
48... Rh1 {[%clk 0:00:05.7]} 49. Nd3 {[%clk 0:00:02.8]} 49... h5 {[%clk
0:00:05.8]} 50. Nf4 {[%clk 0:00:02.7]} 50... g5 {[%clk 0:00:05.7]} 51. Ne2
{[%clk 0:00:02.4]} 51... g4 {[%clk 0:00:05.3]} 52. Kf4 {[%clk 0:00:02.4]} 52...
e5+ {[%clk 0:00:05.5]} 53. Ke4 {[%clk 0:00:02.4]} 53... h4 {[%clk 0:00:05.3]}
54. Rc6+ {[%clk 0:00:02.4]} 54... Kg5 {[%clk 0:00:05.4]} 55. Kxe5 {[%clk
0:00:02.9]} 55... g3 {[%clk 0:00:05.8]} 56. Nf4 {[%clk 0:00:02.6]} 56... Kg4
{[%clk 0:00:05.6]} 57. Rg6+ {[%clk 0:00:02.4]} 57... Kf3 {[%clk 0:00:06.2]} 58.
Rh6 {[%clk 0:00:02.5]} 58... Re1+ {[%clk 0:00:06.7]} 59. Kf5 {[%clk 0:00:02.7]}
59... Rh1 {[%clk 0:00:05.3]} 60. Ng6 {[%clk 0:00:03.1]} 60... g2 {[%clk
0:00:05.2]} 61. Ne5+ {[%clk 0:00:03.8]} 61... Kf2 {[%clk 0:00:05.1]} 62. Ng4+
{[%clk 0:00:03.5]} 62... Ke2 {[%clk 0:00:05.3]} 63. Re6+ {[%clk 0:00:02.3]}
63... Kd3 {[%clk 0:00:06]} 64. Re3+ {[%clk 0:00:02.1]} 64... Kd4 {[%clk
0:00:06.2]} 65. Re4+ {[%clk 0:00:02.6]} 65... Kd5 {[%clk 0:00:06.3]} 66. Ne3+
{[%clk 0:00:02.9]} 66... Kc5 {[%clk 0:00:06.4]} 67. Nxg2 {[%clk 0:00:03.3]}
67... h3 {[%clk 0:00:07.1]} 68. Ne3 {[%clk 0:00:03.3]} 68... Rg1 {[%clk
0:00:06.2]} 69. Rh4 {[%clk 0:00:03]} 69... Rg3 {[%clk 0:00:06.6]} 70. Ng4 {[%clk
0:00:03.3]} 70... Kd6 {[%clk 0:00:05]} 71. Kf4 {[%clk 0:00:03.7]} 71... Ra3
{[%clk 0:00:05]} 72. Kg5 {[%clk 0:00:02]} 72... Kd5 {[%clk 0:00:03.7]} 73. Nf6+
{[%clk 0:00:02.1]} 73... Ke6 {[%clk 0:00:04.2]} 74. Ne4 {[%clk 0:00:02.4]} 74...
Ke5 {[%clk 0:00:04.6]} 75. Nf6 {[%clk 0:00:02.7]} 75... Rg3+ {[%clk 0:00:04.5]}
76. Ng4+ {[%clk 0:00:02.8]} 76... Ke4 {[%clk 0:00:05]} 77. Rh8 {[%clk
0:00:02.2]} 77... Kf3 {[%clk 0:00:05.9]} 78. Rf8+ {[%clk 0:00:02.3]} 78... Kg2
{[%clk 0:00:06.5]} 79. Rf2+ {[%clk 0:00:02.6]} 79... Kg1 {[%clk 0:00:06.7]} 80.
Ra2 {[%clk 0:00:02.8]} 80... h2 {[%clk 0:00:06.6]} 81. Rxh2 {[%clk 0:00:02.5]}
81... Rxg4+ {[%clk 0:00:06.9]} 82. Kxg4 {[%clk 0:00:03.4]} 82... Kxh2 {[%clk
0:00:07.7]} 1/2-1/2

[Event "*** SCC Grand Prix: Titled Tuesday Blitz"]
[Site "Chess.com"]
[Date "2020.07.07"]
[Round "2"]
[White "alexrustemov"]
[Black "SamuelGhimpu2003"]
[Result "1-0"]
[WhiteElo "2720"]
[BlackElo "2497"]
[TimeControl "180+1"]
[EndTime "10:20:20 PDT"]
[Termination "alexrustemov won by resignation"]

1. d4 {[%clk 0:03:00.9]} 1... Nf6 {[%clk 0:03:00.4]} 2. c4 {[%clk 0:03:00.5]}
2... g6 {[%clk 0:03:00.9]} 3. Nf3 {[%clk 0:03:00.8]} 3... Bg7 {[%clk 0:03:00.7]}
4. g3 {[%clk 0:03:01.4]} 4... c6 {[%clk 0:03:00.3]} 5. Bg2 {[%clk 0:02:59.3]}
5... d5 {[%clk 0:03:01.2]} 6. b3 {[%clk 0:02:58.9]} 6... O-O {[%clk 0:02:59.5]}
7. O-O {[%clk 0:02:58.8]} 7... Bf5 {[%clk 0:03:00]} 8. Nc3 {[%clk 0:02:55.8]}
8... Ne4 {[%clk 0:02:59.3]} 9. Bb2 {[%clk 0:02:55.2]} 9... Nd7 {[%clk
0:02:57.3]} 10. e3 {[%clk 0:02:53.6]} 10... a5 {[%clk 0:02:52.3]} 11. Rc1 {[%clk
0:02:46.4]} 11... Nxc3 {[%clk 0:02:46.2]} 12. Bxc3 {[%clk 0:02:45.7]} 12... Be4
{[%clk 0:02:44.9]} 13. Qe2 {[%clk 0:02:44]} 13... Qb6 {[%clk 0:02:34.5]} 14.
Rfd1 {[%clk 0:02:42]} 14... Qa6 {[%clk 0:02:31.3]} 15. Bf1 {[%clk 0:02:37.5]}
15... Rfc8 {[%clk 0:02:14.8]} 16. Nh4 {[%clk 0:02:11.3]} 16... Nf6 {[%clk
0:01:41]} 17. f3 {[%clk 0:02:03.9]} 17... Bf5 {[%clk 0:01:41.3]} 18. Nxf5 {[%clk
0:01:31.8]} 18... gxf5 {[%clk 0:01:42.2]} 19. cxd5 {[%clk 0:01:24]} 19... Qxe2
{[%clk 0:01:38.3]} 20. Bxe2 {[%clk 0:01:24.9]} 20... Nxd5 {[%clk 0:01:34.8]} 21.
Bd2 {[%clk 0:01:24.2]} 21... a4 {[%clk 0:01:33.4]} 22. b4 {[%clk 0:01:23.5]}
22... a3 {[%clk 0:01:27.2]} 23. Kf2 {[%clk 0:01:20.3]} 23... e6 {[%clk
0:01:26.1]} 24. Rb1 {[%clk 0:01:19.2]} 24... b5 {[%clk 0:01:25.7]} 25. Rb3
{[%clk 0:01:15.6]} 25... Ra4 {[%clk 0:01:19.1]} 26. f4 {[%clk 0:01:12.6]} 26...
Bf8 {[%clk 0:01:09.4]} 27. Rdb1 {[%clk 0:01:12.4]} 27... Nf6 {[%clk 0:01:08.8]}
28. Bf3 {[%clk 0:01:05.9]} 28... Ne4+ {[%clk 0:01:05.5]} 29. Ke2 {[%clk
0:01:05.8]} 29... Bd6 {[%clk 0:00:57.3]} 30. Be1 {[%clk 0:01:03.5]} 30... Kf8
{[%clk 0:00:49.8]} 31. g4 {[%clk 0:01:02.3]} 31... Nf6 {[%clk 0:00:42.4]} 32. h3
{[%clk 0:00:55.9]} 32... Nd5 {[%clk 0:00:38.5]} 33. Kd3 {[%clk 0:00:41.8]} 33...
Ke7 {[%clk 0:00:22.4]} 34. Bd2 {[%clk 0:00:41.2]} 34... Kd7 {[%clk 0:00:20.6]}
35. gxf5 {[%clk 0:00:35.2]} 35... exf5 {[%clk 0:00:21.5]} 36. Bxd5 {[%clk
0:00:27.3]} 36... cxd5 {[%clk 0:00:22.4]} 37. Rg1 {[%clk 0:00:27.5]} 37... Ke6
{[%clk 0:00:14.6]} 38. Rg7 {[%clk 0:00:25.2]} 38... Kf6 {[%clk 0:00:13.2]} 39.
Rg1 {[%clk 0:00:21.9]} 39... Rc4 {[%clk 0:00:11.3]} 40. Rgb1 {[%clk 0:00:20.2]}
40... Rc8 {[%clk 0:00:11.2]} 41. Bc3 {[%clk 0:00:20.1]} 41... Rg8 {[%clk
0:00:09.3]} 42. Bd2 {[%clk 0:00:20.4]} 42... Rg3 {[%clk 0:00:08.8]} 43. Rc1
{[%clk 0:00:20.7]} 43... Rxh3 {[%clk 0:00:06.8]} 44. Rc6 {[%clk 0:00:21.3]}
44... Ke7 {[%clk 0:00:06.3]} 45. Rb6 {[%clk 0:00:21.9]} 45... Bxf4 {[%clk
0:00:06.1]} 46. Ke2 {[%clk 0:00:17.5]} 46... Bd6 {[%clk 0:00:05.1]} 47. Rxb5
{[%clk 0:00:17]} 47... Ra8 {[%clk 0:00:05.7]} 48. Rxd5 {[%clk 0:00:16.5]} 48...
Rg8 {[%clk 0:00:06.2]} 49. Kd3 {[%clk 0:00:16.5]} 49... f4 {[%clk 0:00:05.6]}
50. Kc4 {[%clk 0:00:13.6]} 50... Rgg3 {[%clk 0:00:03.7]} 51. exf4 {[%clk
0:00:10.6]} 51... Rxb3 {[%clk 0:00:04.6]} 52. axb3 {[%clk 0:00:10.8]} 52... Rh2
{[%clk 0:00:05]} 53. Bc3 {[%clk 0:00:10.5]} 53... Bxf4 {[%clk 0:00:04.6]} 54.
Ra5 {[%clk 0:00:11.2]} 54... a2 {[%clk 0:00:05]} 55. b5 {[%clk 0:00:11.5]} 55...
Rc2 {[%clk 0:00:04.5]} 56. Kd3 {[%clk 0:00:11.1]} 56... Rc1 {[%clk 0:00:04.1]}
57. b6 {[%clk 0:00:11.4]} 57... Rb1 {[%clk 0:00:04.1]} 58. Kc4 {[%clk
0:00:10.3]} 58... Rc1 {[%clk 0:00:03.3]} 59. Kd3 {[%clk 0:00:10]} 59... Rb1
{[%clk 0:00:02.9]} 60. b4 {[%clk 0:00:10]} 60... Kd7 {[%clk 0:00:02.2]} 61. d5
{[%clk 0:00:10.3]} 61... Kc8 {[%clk 0:00:02.1]} 62. Ra7 {[%clk 0:00:10.3]} 62...
Kb8 {[%clk 0:00:01.6]} 63. Kc4 {[%clk 0:00:09.9]} 63... Rc1 {[%clk 0:00:02.4]}
64. Kd4 {[%clk 0:00:10]} 64... Rb1 {[%clk 0:00:01.9]} 65. Kc5 {[%clk 0:00:09.5]}
65... Bc1 {[%clk 0:00:02.8]} 66. d6 {[%clk 0:00:08.7]} 66... Bf4 {[%clk
0:00:02.2]} 67. d7 {[%clk 0:00:08.4]} 67... Rd1 {[%clk 0:00:02.7]} 68. Kc6
{[%clk 0:00:07]} 68... Rd6+ {[%clk 0:00:02.6]} 69. Kb5 {[%clk 0:00:07]} 69...
Rd1 {[%clk 0:00:03.5]} 70. Bf6 {[%clk 0:00:06.5]} 70... Rd6 {[%clk 0:00:03.2]}
71. d8=Q+ {[%clk 0:00:06.3]} 71... Rxd8 {[%clk 0:00:04.1]} 72. Bxd8 {[%clk
0:00:06.9]} 1-0

[Event "*** SCC Grand Prix: Titled Tuesday Blitz"]
[Site "Chess.com"]
[Date "2020.07.07"]
[Round "2"]
[White "talman67"]
[Black "esrosenberg"]
[Result "1-0"]
[WhiteElo "2495"]
[BlackElo "2287"]
[TimeControl "180+1"]
[EndTime "10:20:42 PDT"]
[Termination "talman67 won by resignation"]

1. e4 {[%clk 0:03:00.9]} 1... e5 {[%clk 0:02:59.8]} 2. Nf3 {[%clk 0:03:00.4]}
2... Nc6 {[%clk 0:03:00.1]} 3. Bb5 {[%clk 0:03:00.5]} 3... a6 {[%clk 0:03:00.1]}
4. Ba4 {[%clk 0:03:00.4]} 4... Nf6 {[%clk 0:03:00.2]} 5. O-O {[%clk 0:02:59.8]}
5... Be7 {[%clk 0:03:00.2]} 6. Re1 {[%clk 0:02:59.5]} 6... b5 {[%clk 0:03:00.2]}
7. Bb3 {[%clk 0:02:59.9]} 7... O-O {[%clk 0:03:00.4]} 8. a4 {[%clk 0:02:56.9]}
8... Bb7 {[%clk 0:02:55.7]} 9. d3 {[%clk 0:02:52.2]} 9... d6 {[%clk 0:02:46.1]}
10. Nc3 {[%clk 0:02:50.5]} 10... b4 {[%clk 0:02:22.8]} 11. Nd5 {[%clk 0:02:49]}
11... Nxd5 {[%clk 0:02:20.2]} 12. Bxd5 {[%clk 0:02:48.4]} 12... Na5 {[%clk
0:02:15.5]} 13. Ba2 {[%clk 0:02:27.8]} 13... b3 {[%clk 0:02:07.2]} 14. cxb3
{[%clk 0:02:27.5]} 14... Nc6 {[%clk 0:02:07.6]} 15. d4 {[%clk 0:02:21]} 15...
exd4 {[%clk 0:01:59.1]} 16. Nxd4 {[%clk 0:02:21.9]} 16... Nb4 {[%clk 0:01:29.2]}
17. Bb1 {[%clk 0:02:14.8]} 17... Bf6 {[%clk 0:01:25.5]} 18. Be3 {[%clk
0:02:06.5]} 18... Re8 {[%clk 0:01:20.1]} 19. Qd2 {[%clk 0:02:04.7]} 19... a5
{[%clk 0:01:18.9]} 20. f3 {[%clk 0:02:02.7]} 20... g6 {[%clk 0:01:15.4]} 21. Bc2
{[%clk 0:01:59.1]} 21... h5 {[%clk 0:00:53.3]} 22. Rac1 {[%clk 0:01:46.1]} 22...
Kg7 {[%clk 0:00:47.2]} 23. Bd3 {[%clk 0:01:43.3]} 23... Nxd3 {[%clk 0:00:43.8]}
24. Qxd3 {[%clk 0:01:44.2]} 24... c5 {[%clk 0:00:32.5]} 25. Nb5 {[%clk
0:01:42.2]} 25... Ba6 {[%clk 0:00:28.1]} 26. Qxd6 {[%clk 0:01:29.1]} 26... Bxb5
{[%clk 0:00:26.3]} 27. Qxd8 {[%clk 0:01:29.2]} 27... Rexd8 {[%clk 0:00:23.2]}
28. axb5 {[%clk 0:01:30.1]} 28... Bd4 {[%clk 0:00:11.9]} 29. Bxd4+ {[%clk
0:01:09.1]} 29... cxd4 {[%clk 0:00:12]} 30. Rc5 {[%clk 0:01:06]} 30... a4 {[%clk
0:00:11.4]} 31. b6 {[%clk 0:01:01.4]} 31... axb3 {[%clk 0:00:09.2]} 32. Rb5
{[%clk 0:01:01]} 32... d3 {[%clk 0:00:08.4]} 33. Rd1 {[%clk 0:00:58.3]} 33... d2
{[%clk 0:00:08.7]} 34. b7 {[%clk 0:00:51.8]} 34... Rab8 {[%clk 0:00:05.4]} 35.
Rxb3 {[%clk 0:00:49.4]} 35... Rd7 {[%clk 0:00:05.7]} 36. Kf2 {[%clk 0:00:49.9]}
36... Rdxb7 {[%clk 0:00:05.5]} 37. Rxb7 {[%clk 0:00:50.8]} 37... Rxb7 {[%clk
0:00:05.7]} 38. Rxd2 {[%clk 0:00:51.7]} 38... f5 {[%clk 0:00:05.6]} 39. exf5
{[%clk 0:00:51]} 39... gxf5 {[%clk 0:00:05.9]} 40. Ke3 {[%clk 0:00:51.3]} 40...
Kf6 {[%clk 0:00:04.7]} 41. Kd3 {[%clk 0:00:43.1]} 41... Ke5 {[%clk 0:00:04.3]}
42. g3 {[%clk 0:00:39.9]} 42... Rd7+ {[%clk 0:00:04]} 43. Ke3 {[%clk 0:00:35.8]}
43... Rb7 {[%clk 0:00:04.2]} 44. Kd3 {[%clk 0:00:32.2]} 44... f4 {[%clk
0:00:04.3]} 45. Re2+ {[%clk 0:00:31.6]} 45... Kf5 {[%clk 0:00:04.3]} 46. Kc2
{[%clk 0:00:19.9]} 46... fxg3 {[%clk 0:00:03.9]} 47. hxg3 {[%clk 0:00:20.8]}
47... Rc7+ {[%clk 0:00:04.2]} 48. Kd3 {[%clk 0:00:20.8]} 48... Rd7+ {[%clk
0:00:04.3]} 49. Ke3 {[%clk 0:00:21.4]} 49... Rb7 {[%clk 0:00:04.3]} 50. Kf2
{[%clk 0:00:22.3]} 50... Rb3 {[%clk 0:00:04.4]} 51. Kg2 {[%clk 0:00:22.1]} 51...
h4 {[%clk 0:00:04.5]} 52. gxh4 {[%clk 0:00:20.8]} 52... Kf4 {[%clk 0:00:04.1]}
53. Re4+ {[%clk 0:00:20.7]} 53... Kf5 {[%clk 0:00:04.5]} 54. Re2 {[%clk
0:00:17.7]} 54... Kf4 {[%clk 0:00:05]} 55. h5 {[%clk 0:00:17.2]} 55... Rb5
{[%clk 0:00:03.2]} 56. Re4+ {[%clk 0:00:14.9]} 56... Kf5 {[%clk 0:00:03.7]} 57.
b4 {[%clk 0:00:15.2]} 57... Rb8 {[%clk 0:00:03]} 58. Kg3 {[%clk 0:00:14.6]}
58... Rg8+ {[%clk 0:00:03.2]} 59. Rg4 {[%clk 0:00:15]} 59... Rb8 {[%clk
0:00:03.5]} 60. h6 {[%clk 0:00:14.7]} 60... Rh8 {[%clk 0:00:04.2]} 61. Rh4
{[%clk 0:00:14.3]} 61... Kg5 {[%clk 0:00:04.8]} 62. f4+ {[%clk 0:00:14.3]} 62...
Kg6 {[%clk 0:00:04.5]} 63. Kf3 {[%clk 0:00:14.3]} 63... Kh7 {[%clk 0:00:04]} 64.
Ke3 {[%clk 0:00:13.5]} 64... Re8+ {[%clk 0:00:04.3]} 65. Kd4 {[%clk 0:00:12.2]}
65... Rd8+ {[%clk 0:00:05]} 66. Kc5 {[%clk 0:00:12.6]} 66... Rc8+ {[%clk
0:00:05.6]} 67. Kd6 {[%clk 0:00:13]} 67... Rb8 {[%clk 0:00:06.1]} 68. f5 {[%clk
0:00:12.7]} 68... Rb6+ {[%clk 0:00:06.6]} 69. Kc5 {[%clk 0:00:12.7]} 69... Rf6
{[%clk 0:00:06.9]} 70. b5 {[%clk 0:00:10.7]} 70... Rxf5+ {[%clk 0:00:07.3]} 71.
Kb4 {[%clk 0:00:11.3]} 71... Rf1 {[%clk 0:00:07.2]} 72. b6 {[%clk 0:00:11.1]}
72... Rb1+ {[%clk 0:00:07.7]} 73. Kc5 {[%clk 0:00:11.4]} 73... Rc1+ {[%clk
0:00:08]} 74. Kb5 {[%clk 0:00:11.9]} 74... Rb1+ {[%clk 0:00:08.3]} 75. Kc6
{[%clk 0:00:12.4]} 75... Rc1+ {[%clk 0:00:08.6]} 76. Kd7 {[%clk 0:00:10.9]}
76... Rd1+ {[%clk 0:00:09]} 77. Kc7 {[%clk 0:00:11.2]} 77... Rc1+ {[%clk
0:00:09.3]} 78. Kb8 {[%clk 0:00:11.7]} 78... Rg1 {[%clk 0:00:08.4]} 79. b7
{[%clk 0:00:11.7]} 79... Rg8+ {[%clk 0:00:08.5]} 80. Ka7 {[%clk 0:00:11.8]}
80... Rg4 {[%clk 0:00:08.4]} 81. Rxg4 {[%clk 0:00:10.9]} 1-0